fUST/lending_fUST_20250624
["ID","MTS","AMOUNT","RATE_DAILY","PERIOD"]
[367274269,1750725050197,-153.0,0.0001989,2]
[367274271,1750725050206,-153.0,0.0001989,2]
[367274273,1750725050215,-151.0,0.000199,2]
[367274275,1750725050227,-158.85188267,0.00019912,2]
[367274277,1750725050237,-113057.29153514,0.00019915,2]
[367274279,1750725050246,-1000.0,0.00019916,2]
[367274281,1750725050255,-5888.0,0.00019929,2]
[367274283,1750725050264,-100000.0,0.0001999,2]
[367274285,1750725050272,-151.0,0.0002,3]
[367274287,1750725050282,-11189.33782105,0.0002,2]
[367274289,1750725050291,-151.0,0.0002,2]
[367274291,1750725050300,-151.0,0.0002,4]
[367274293,1750725050309,-151.0,0.0002,2]
[367274295,1750725050318,-2224.0,0.0002,2]
[367274297,1750725050327,-160.0,0.0002,3]
[367274299,1750725050336,-55596.29923553,0.0002,2]
[367274301,1750725050344,-168.47526753,0.00020022,2]
[367274303,1750725050354,-500.0,0.00020033,2]
[367274305,1750725050362,-500.0,0.00020033,2]
[367274307,1750725050371,-151.0,0.000201,4]
[367274309,1750725050380,-388.33080202,0.00020102,2]
[367274311,1750725050389,-460.0,0.00020111,2]
[367274313,1750725050398,-460.0,0.00020112,2]
[367274323,1750725050480,-460.0,0.00020112,2]
[367274325,1750725050495,-460.0,0.00020112,2]
[367274327,1750725050504,-460.0,0.00020112,2]
[367274329,1750725050513,-221.65175997,0.00020112,2]
[367274331,1750725050523,-460.0,0.00020112,2]
[367274333,1750725050532,-460.0,0.00020112,2]
[367274335,1750725050542,-460.0,0.00020112,2]
[367274337,1750725050551,-460.0,0.00020112,2]
[367274339,1750725050560,-460.0,0.00020112,2]
[367274341,1750725050569,-2500.76,0.00020112,2]
[367274343,1750725050579,-460.0,0.00020112,2]
[367274345,1750725050588,-2664.21,0.00020112,2]
[367274347,1750725050597,-438.79526223,0.00020113,2]
[367274349,1750725050606,-460.0,0.00020113,2]
[367274351,1750725050615,-460.0,0.00020113,2]
[367274353,1750725050626,-460.0,0.00020113,2]
[367274355,1750725050635,-3062.65,0.00020113,2]
[367274357,1750725050645,-460.0,0.00020113,2]
[367274359,1750725050654,-460.0,0.00020113,2]
[367274361,1750725050664,-900.87,0.00020113,2]
[367274363,1750725050673,-460.0,0.00020113,2]
[367274365,1750725050682,-460.0,0.00020113,2]
[367274367,1750725050690,-510.71,0.00020113,2]
[367274369,1750725050700,-1882.4,0.00020113,2]
[367274371,1750725050709,-305.86945585,0.00020113,2]
[367274373,1750725050718,-458.57137614,0.00020113,2]
[367274375,1750725050728,-460.0,0.00020113,2]
[367274377,1750725050737,-2404.38,0.00020113,2]
[367274379,1750725050746,-4088.39,0.00020113,2]
[367274381,1750725050754,-549.49,0.00020113,2]
[367274383,1750725050763,-1338.88,0.00020113,2]
[367274385,1750725050772,-460.0,0.00020113,2]
[367274387,1750725050783,-736.36,0.00020113,2]
[367274389,1750725050793,-1244.32,0.00020113,2]
[367274391,1750725050802,-954.36,0.00020113,2]
[367274393,1750725050813,-3311.66,0.00020113,2]
[367274395,1750725050823,-664.08,0.00020113,2]
[367274397,1750725050833,-460.0,0.00020113,2]
[367274399,1750725050842,-1064.36,0.00020113,2]
[367274400,1750725050851,-726.39,0.00020113,2]
[367274402,1750725050860,-744.3,0.00020113,2]
[367274404,1750725050869,-460.0,0.00020113,2]
[367274406,1750725050878,-470.84100457,0.00020115,2]
[367274408,1750725050889,-460.0,0.00020115,2]
[367274410,1750725050898,-605.16,0.00020115,2]
[367274412,1750725050908,-460.0,0.00020115,2]
[367274414,1750725050918,-460.0,0.00020115,2]
[367274416,1750725050927,-460.0,0.00020115,2]
[367274418,1750725050936,-460.0,0.00020115,2]
[367274420,1750725050945,-460.0,0.00020115,2]
[367274422,1750725050954,-460.0,0.00020115,2]
[367274424,1750725050963,-463.89,0.00020115,2]
[367274426,1750725050972,-460.0,0.00020115,2]
[367274428,1750725050982,-460.0,0.00020115,2]
[367274430,1750725050991,-460.0,0.00020115,2]
[367274432,1750725051001,-460.0,0.00020115,2]
[367274434,1750725051011,-460.0,0.00020115,2]
[367274437,1750725051021,-460.0,0.00020115,2]
[367274439,1750725051030,-460.0,0.00020115,2]
[367274440,1750725051039,-460.0,0.00020115,2]
[367274442,1750725051048,-460.0,0.00020115,2]
[367274444,1750725051057,-460.0,0.00020115,2]
[367274446,1750725051067,-460.0,0.00020115,2]
[367274448,1750725051076,-460.0,0.00020115,2]
[367274450,1750725051085,-460.0,0.00020115,2]
[367274452,1750725051094,-460.0,0.00020115,2]
[367274454,1750725051104,-460.0,0.00020115,2]
[367274456,1750725051113,-460.0,0.00020115,2]
[367274458,1750725051122,-460.0,0.00020115,2]
[367274460,1750725051131,-460.0,0.00020115,2]
[367274462,1750725051140,-612.66,0.00020115,2]
[367274464,1750725051150,-460.0,0.00020115,2]
[367274466,1750725051160,-460.0,0.00020115,2]
[367274468,1750725051169,-460.0,0.00020115,2]
[367274470,1750725051179,-460.0,0.00020115,2]
[367274472,1750725051189,-460.0,0.00020115,2]
[367274474,1750725051198,-604.05,0.00020115,2]
[367274476,1750725051207,-934.51,0.00020115,2]
[367274478,1750725051216,-460.0,0.00020115,2]
[367274480,1750725051225,-460.0,0.00020115,2]
[367274482,1750725051235,-460.0,0.00020115,2]
[367274484,1750725051244,-790.46,0.00020115,2]
[367274486,1750725051253,-460.0,0.00020115,2]
[367274488,1750725051263,-477.44,0.00020115,2]
[367274490,1750725051271,-651.76,0.00020115,2]
[367274492,1750725051280,-460.0,0.00020115,2]
[367274494,1750725051289,-612.65,0.00020115,2]
[367274496,1750725051299,-460.0,0.00020115,2]
[367274498,1750725051308,-460.0,0.00020115,2]
[367274500,1750725051317,-460.0,0.00020115,2]
[367274502,1750725051326,-460.0,0.00020115,2]
[367274504,1750725051335,-811.54,0.00020115,2]
[367274506,1750725051344,-150.10202009,0.00020115,2]
[367274508,1750725051354,-460.0,0.00020115,2]
[367274510,1750725051363,-460.0,0.00020115,2]
[367274512,1750725051373,-460.0,0.00020115,2]
[367274514,1750725051382,-553.98,0.00020115,2]
[367274516,1750725051391,-460.0,0.00020115,2]
[367274518,1750725051400,-460.0,0.00020115,2]
[367274520,1750725051410,-460.0,0.00020115,2]
[367274522,1750725051420,-460.0,0.00020115,2]
[367274524,1750725051428,-460.0,0.00020115,2]
[367274526,1750725051439,-1072.13,0.00020115,2]
[367274528,1750725051448,-460.0,0.00020116,2]
[367274530,1750725051458,-460.0,0.00020116,2]
[367274532,1750725051468,-591.26,0.00020116,2]
[367274534,1750725051477,-460.0,0.00020116,2]
[367274536,1750725051487,-460.0,0.00020116,2]
[367274538,1750725051497,-460.0,0.00020116,2]
[367274540,1750725051506,-460.0,0.00020116,2]
[367274542,1750725051515,-460.0,0.00020116,2]
[367274544,1750725051525,-460.0,0.00020116,2]
[367274546,1750725051534,-460.0,0.00020116,2]
[367274548,1750725051543,-460.0,0.00020116,2]
[367274550,1750725051552,-674.87,0.00020116,2]
[367274552,1750725051561,-460.0,0.00020116,2]
[367274554,1750725051571,-460.0,0.00020116,2]
[367274556,1750725051580,-460.0,0.00020116,2]
[367274558,1750725051589,-460.0,0.00020116,2]
[367274560,1750725051599,-460.0,0.00020116,2]
[367274562,1750725051608,-460.0,0.00020116,2]
[367274564,1750725051617,-460.0,0.00020116,2]
[367274566,1750725051626,-387.90137834,0.00020116,2]
[367274568,1750725051635,-460.0,0.00020116,2]
[367274570,1750725051645,-383.86131689,0.00020116,2]
[367274572,1750725051654,-460.0,0.00020116,2]
[367274574,1750725051666,-460.0,0.00020116,2]
[367274576,1750725051675,-460.0,0.00020116,2]
[367274578,1750725051684,-460.0,0.00020116,2]
[367274580,1750725051693,-460.0,0.00020116,2]
[367274582,1750725051703,-460.0,0.00020116,2]
[367274584,1750725051712,-460.0,0.00020116,2]
[367274586,1750725051722,-460.0,0.00020116,2]
[367274588,1750725051731,-460.0,0.00020116,2]
[367274590,1750725051741,-460.0,0.00020116,2]
[367274600,1750725051828,-460.0,0.00020116,2]
[367274602,1750725051838,-460.0,0.00020116,2]
[367274604,1750725051847,-194.22549568,0.00020116,2]
[367274606,1750725051856,-460.0,0.00020116,2]
[367274608,1750725051866,-221.08437545,0.00020116,2]
[367274610,1750725051875,-299.08204949,0.00020116,2]
[367274612,1750725051885,-460.0,0.00020116,2]
[367274614,1750725051896,-460.0,0.00020116,2]
[367274617,1750725051907,-460.0,0.00020116,2]
[367274619,1750725051916,-460.0,0.00020116,2]
[367274621,1750725051926,-460.0,0.00020116,2]
[367274623,1750725051936,-460.0,0.00020116,2]
[367274625,1750725051945,-460.0,0.00020116,2]
[367274627,1750725051955,-460.0,0.00020116,2]
[367274629,1750725051964,-460.0,0.00020116,2]
[367274631,1750725051974,-2646.67,0.00020116,2]
[367274633,1750725051984,-460.0,0.00020116,2]
[367274635,1750725051994,-792.39,0.00020116,2]
[367274637,1750725052002,-460.0,0.00020116,2]
[367274639,1750725052012,-460.0,0.00020116,2]
[367274641,1750725052021,-460.0,0.00020116,2]
[367274643,1750725052030,-460.0,0.00020116,2]
[367274645,1750725052039,-460.0,0.00020116,2]
[367274647,1750725052048,-460.0,0.00020116,2]
[367274649,1750725052057,-460.0,0.00020116,2]
[367274651,1750725052067,-460.0,0.00020116,2]
[367274653,1750725052076,-6538.53,0.00020116,2]
[367274655,1750725052085,-460.0,0.00020116,2]
[367274657,1750725052095,-2177.8,0.00020116,2]
[367274659,1750725052104,-698.79,0.00020116,2]
[367274661,1750725052113,-608.76,0.00020116,2]
[367274663,1750725052122,-1456.06,0.00020116,2]
[367274665,1750725052131,-460.0,0.00020116,2]
[367274667,1750725052141,-705.14,0.00020116,2]
[367274669,1750725052150,-460.0,0.00020116,2]
[367274671,1750725052160,-460.0,0.00020116,2]
[367274673,1750725052169,-460.0,0.00020116,2]
[367274675,1750725052179,-966.61,0.00020116,2]
[367274677,1750725052188,-460.0,0.00020116,2]
[367274679,1750725052198,-722.57,0.00020116,2]
[367274680,1750725052207,-3779.23,0.00020116,2]
[367274682,1750725052218,-966.95,0.00020116,2]
[367274684,1750725052227,-460.0,0.00020116,2]
[367274686,1750725052238,-1191.39,0.00020116,2]
[367274687,1750725052247,-460.0,0.00020116,2]
[367274688,1750725052256,-2603.88,0.00020116,2]
[367274689,1750725052265,-800.18,0.00020116,2]
[367274690,1750725052273,-617.16786251,0.00020116,2]
[367274691,1750725052282,-2622.96,0.00020116,2]
[367274692,1750725052292,-460.0,0.00020116,2]
[367274693,1750725052301,-460.0,0.00020117,2]
[367274694,1750725052310,-557.53,0.00020117,2]
[367274695,1750725052319,-1014.37,0.00020117,2]
[367274696,1750725052327,-460.0,0.00020117,2]
[367274697,1750725052337,-460.0,0.00020117,2]
[367274698,1750725052346,-460.0,0.00020117,2]
[367274699,1750725052355,-460.0,0.00020117,2]
[367274700,1750725052364,-460.0,0.00020117,2]
[367274701,1750725052373,-460.0,0.00020117,2]
[367274702,1750725052382,-460.0,0.00020117,2]
[367274703,1750725052391,-460.0,0.00020117,2]
[367274704,1750725052400,-460.0,0.00020117,2]
[367274705,1750725052410,-500.0,0.00020117,2]
[367274706,1750725052419,-673.58,0.00020117,2]
[367274707,1750725052428,-460.0,0.00020117,2]
[367274708,1750725052437,-460.0,0.00020117,2]
[367274709,1750725052447,-667.39,0.00020117,2]
[367274710,1750725052457,-460.0,0.00020117,2]
[367274711,1750725052466,-460.0,0.00020117,2]
[367274712,1750725052475,-707.91,0.00020117,2]
[367274713,1750725052484,-460.0,0.00020117,2]
[367274714,1750725052493,-460.0,0.00020117,2]
[367274715,1750725052502,-460.0,0.00020117,2]
[367274716,1750725052511,-460.0,0.00020117,2]
[367274717,1750725052520,-460.0,0.00020117,2]
[367274718,1750725052530,-460.0,0.00020117,2]
[367274719,1750725052539,-460.0,0.00020117,2]
[367274720,1750725052548,-460.0,0.00020117,2]
[367274721,1750725052558,-529.96,0.00020117,2]
[367274722,1750725052567,-460.0,0.00020117,2]
[367274724,1750725052577,-460.0,0.00020117,2]
[367274725,1750725052587,-464.15,0.00020117,2]
[367274726,1750725052596,-460.0,0.00020117,2]
[367274727,1750725052605,-1211.42,0.00020117,2]
[367274728,1750725052615,-460.0,0.00020118,2]
[367274729,1750725052624,-460.0,0.00020118,2]
[367274730,1750725052634,-460.0,0.00020119,2]
[367274731,1750725052643,-258.34480461,0.00020119,2]
[367274732,1750725052652,-460.0,0.00020119,2]
[367274733,1750725052663,-460.0,0.00020119,2]
[367274734,1750725052673,-460.0,0.00020119,2]
[367274735,1750725052683,-460.0,0.00020119,2]
[367274736,1750725052692,-460.0,0.00020119,2]
[367274737,1750725052702,-460.0,0.00020119,2]
[367274738,1750725052711,-485.22,0.00020119,2]
[367274739,1750725052720,-460.0,0.00020119,2]
[367274740,1750725052731,-460.0,0.00020119,2]
[367274741,1750725052740,-460.0,0.00020119,2]
[367274742,1750725052750,-460.0,0.00020119,2]
[367274743,1750725052759,-460.0,0.00020119,2]
[367274744,1750725052769,-443.79953179,0.00020119,2]
[367274745,1750725052778,-460.0,0.00020119,2]
[367274746,1750725052788,-1000.0,0.00020119,2]
[367274747,1750725052798,-460.0,0.00020119,2]
[367274748,1750725052808,-460.0,0.00020119,2]
[367274749,1750725052820,-460.0,0.00020119,2]
[367274750,1750725052830,-460.0,0.00020119,2]
[367274751,1750725052839,-460.0,0.00020119,2]
[367274752,1750725052848,-460.0,0.00020119,2]
[367274753,1750725052858,-389.65206429,0.00020119,2]
[367274754,1750725052868,-460.0,0.00020119,2]
[367274755,1750725052878,-460.0,0.00020119,2]
[367274756,1750725052887,-347.26803242,0.00020119,2]
[367274757,1750725052896,-509.18,0.00020119,2]
[367274758,1750725052907,-500.0,0.00020121,2]
[367274759,1750725052916,-1000.0,0.00020121,2]
[367274760,1750725052926,-509.04881994,0.00020121,2]
[367274761,1750725052935,-1005.19550113,0.00020121,2]
[367274762,1750725052945,-1000.0,0.00020121,2]
[367274763,1750725052954,-1000.0,0.00020121,2]
[367274764,1750725052963,-1000.0,0.00020121,2]
[367274765,1750725052972,-1000.0,0.00020122,2]
[367274766,1750725052981,-1000.0,0.00020122,2]
[367274767,1750725052991,-422.21608434,0.00020122,2]
[367274768,1750725053001,-365.8891638,0.00020134,2]
[367274769,1750725053087,-151.78316967,0.0002017,2]
[367274770,1750725053096,-151.0,0.0002017,2]
[367274771,1750725053106,-500.0,0.0002017,2]
[367274772,1750725053115,-207.4,0.0002017,2]
[367274773,1750725053124,-171.11124864,0.0002017,2]
[367274774,1750725053134,-1688.0,0.0002017,2]
[367274775,1750725053143,-500.0,0.0002017,2]
[367274776,1750725053153,-500.0,0.0002017,2]
[367274777,1750725053163,-500.0,0.0002017,2]
[367274778,1750725053173,-500.0,0.0002017,2]
[367274779,1750725053182,-500.0,0.0002017,2]
[367274780,1750725053191,-500.0,0.0002017,2]
[367274781,1750725053200,-500.0,0.0002017,2]
[367274782,1750725053210,-500.0,0.0002017,2]
[367274783,1750725053219,-500.0,0.0002017,2]
[367274784,1750725053228,-500.0,0.0002017,2]
[367274785,1750725053237,-500.0,0.0002017,2]
[367274786,1750725053247,-500.0,0.0002017,2]
[367274787,1750725053256,-500.0,0.0002017,2]
[367274788,1750725053265,-500.0,0.0002017,2]
[367274789,1750725053274,-500.0,0.0002017,2]
[367274790,1750725053283,-500.0,0.0002017,2]
[367274791,1750725053291,-500.0,0.0002017,2]
[367274792,1750725053300,-5000.0,0.0002017,2]
[367274793,1750725053310,-500.0,0.0002017,2]
[367274794,1750725053319,-500.0,0.0002017,2]
[367274795,1750725053328,-500.0,0.0002017,2]
[367274796,1750725053338,-500.0,0.0002017,2]
[367274797,1750725053347,-500.0,0.0002017,2]
[367274798,1750725053355,-152.96748886,0.0002017,2]
[367274799,1750725053365,-151.0,0.0002017,2]
[367274800,1750725053374,-25000.0,0.0002017,2]
[367274801,1750725053384,-500.0,0.00020173,2]
[367274802,1750725053393,-504.0207603,0.00020173,2]
[367274803,1750725053403,-500.0,0.00020173,2]
[367274804,1750725053413,-500.0,0.00020173,2]
[367274805,1750725053422,-209.38262339,0.00020173,2]
[367274806,1750725053432,-500.0,0.00020173,2]
[367274807,1750725053441,-500.0,0.00020173,2]
[367274808,1750725053450,-500.0,0.00020173,2]
[367274809,1750725053459,-500.0,0.00020173,2]
[367274810,1750725053468,-500.0,0.00020173,2]
[367274811,1750725053478,-514.682777,0.00020187,2]
[367274812,1750725053487,-151.0,0.000202,3]
[367274813,1750725053496,-151.0,0.000202,4]
[367274814,1750725053506,-1750.456,0.00020225,2]
[367274815,1750725053516,-1815.222872,0.0002028,2]
[367274816,1750725053526,-5239.42191941,0.00020289,2]
[367274817,1750725053536,-151.0,0.000203,3]
[367274818,1750725053545,-1882.38611826,0.00020335,2]
[367274819,1750725053555,-1163.06556698,0.00020338,2]
[367274820,1750725053564,-4186.94515637,0.00020338,2]
[367274821,1750725053573,-195252.23954544,0.00020338,2]
[367274822,1750725054688,-460.0,0.00019288,2]
[367274823,1750725054697,-192.05725676,0.00019289,2]
[367274824,1750725054709,-267.94274324,0.00019289,2]
[367274825,1750725054718,-159.05890247,0.00019289,2]
[367274826,1750725054734,-300.94109753,0.00019289,2]
[367274827,1750725054743,-147.48613515,0.00019295,2]
[367274828,1750725054844,-312.51386485,0.00019295,2]
[367274829,1750725054855,-460.0,0.00019563,2]
[367274830,1750725054866,-460.0,0.00019569,2]
[367274831,1750725054876,-460.0,0.00019836,2]
[367274832,1750725054886,-404.84787253,0.00019836,2]
[367274833,1750725054901,-460.0,0.00019837,2]
[367274834,1750725054914,-200.09,0.00019843,2]
[367274835,1750725054924,-460.0,0.0002011,2]
[367274836,1750725054933,-194.36166828,0.00020111,2]
[367274837,1750725057897,150.0,0.000189,2]
[367274839,1750725117356,1337.16,0.000191,2]
[367274840,1750725130689,3000.0,0.000184,2]
[367274843,1750725190629,14108.6769827,0.00018292,2]
[367274844,1750725190651,10791.3230173,0.00018292,2]
[367274845,1750725200150,1400.0,0.00024,120]
[367274850,1750725450135,-391.50529064,0.00019178,2]
[367274851,1750725558917,-79.07267836,0.00019178,2]
[367274852,1750725558939,-143.76942964,0.00019188,2]
[367274853,1750725620602,152.0981812,0.00018669,2]
[367274854,1750725789703,-222.842108,0.00019187,2]
[367274855,1750726025083,-184.870615,0.00019187,2]
[367274856,1750726040085,-367.64297854,0.00019187,2]
[367274857,1750726040106,-695.01,0.0001928,3]
[367274858,1750726040137,-347.5,0.0001928,3]
[367274859,1750726040158,-11.9877141,0.00019283,2]
[367274860,1750726041075,-288.0122859,0.00019283,2]
[367274861,1750726041095,-300.0,0.00019283,2]
[367274862,1750726041116,-418.42,0.00019284,3]
[367274863,1750726041140,-209.21,0.00019284,3]
[367274864,1750726041162,-627.65,0.00019284,3]
[367274865,1750726041182,-300.0,0.00019284,2]
[367274866,1750726041203,-300.0,0.00019284,2]
[367274867,1750726041223,-300.0,0.00019284,2]
[367274868,1750726041244,-1200.0,0.00019284,2]
[367274869,1750726041265,-2785.16358821,0.00019285,3]
[367274871,1750726063583,498.131819,0.00013699,2]
[367274913,1750726237471,-173.75,0.0001928,3]
[367274915,1750726237481,-521.28,0.0001928,3]
[367274917,1750726237490,-500.0,0.00019284,2]
[367274918,1750726237499,-500.0,0.00019284,2]
[367274920,1750726237508,-500.0,0.00019284,2]
[367274922,1750726237518,-500.0,0.00019284,2]
[367274924,1750726237527,-181.2195,0.00019284,2]
[367274926,1750726237536,-590.36997484,0.00019284,2]
[367274928,1750726237546,-500.0,0.00019284,2]
[367274930,1750726237555,-500.0,0.00019284,2]
[367274932,1750726237565,-500.0,0.00019284,2]
[367274934,1750726237574,-500.0,0.00019284,2]
[367274936,1750726237584,-175.43554881,0.00019284,2]
[367274938,1750726237593,-500.0,0.00019284,2]
[367274939,1750726237603,-500.0,0.00019284,2]
[367274941,1750726237612,-500.0,0.00019284,2]
[367274943,1750726237621,-500.0,0.00019284,2]
[367274945,1750726237631,-500.0,0.00019284,2]
[367274947,1750726237640,-500.0,0.00019284,2]
[367274949,1750726237649,-501.04358821,0.00019284,2]
[367274951,1750726237658,-500.0,0.00019284,2]
[367274953,1750726237667,-219.19859052,0.00019284,2]
[367274955,1750726237677,-500.0,0.00019284,2]
[367274957,1750726237687,-500.0,0.00019284,2]
[367274959,1750726237697,-500.0,0.00019284,2]
[367274961,1750726237706,-500.0,0.00019284,2]
[367274963,1750726237715,-500.0,0.00019284,2]
[367274964,1750726237725,-500.0,0.00019284,2]
[367274966,1750726237734,-500.0,0.00019284,2]
[367274967,1750726237743,-500.0,0.00019284,2]
[367274968,1750726237752,-500.0,0.00019284,2]
[367274969,1750726237761,-315.20775389,0.00019284,2]
[367274971,1750726237770,-499.00569296,0.00019284,2]
[367274972,1750726237779,-578.44741741,0.00019284,2]
[367274973,1750726237788,-300.0,0.00019284,2]
[367274974,1750726237930,-300.0,0.00019284,2]
[367274975,1750726237940,-1200.0,0.00019284,2]
[367274976,1750726237950,-3586.85606933,0.00019285,2]
[367274977,1750726237972,-46413.14393067,0.00019285,2]
[367274978,1750726237982,-562.16641179,0.00019285,3]
[367274979,1750726237991,-1673.66,0.00019285,3]
[367274980,1750726238002,-836.83,0.00019285,3]
[367274981,1750726238012,-460.0,0.00019285,2]
[367274982,1750726238021,-460.0,0.00019285,2]
[367274983,1750726238030,-460.0,0.00019285,2]
[367274984,1750726238039,-460.0,0.00019286,2]
[367274985,1750726238048,-460.0,0.00019286,2]
[367274986,1750726238058,-175.32,0.00019286,2]
[367274987,1750726238067,-460.0,0.00019286,2]
[367274988,1750726238076,-460.0,0.00019286,2]
[367274989,1750726238086,-460.0,0.00019286,2]
[367274990,1750726238095,-577.87335953,0.00019286,2]
[367274991,1750726238106,-259.12992828,0.00019286,2]
[367274992,1750726238116,-460.0,0.00019286,2]
[367274993,1750726238126,-460.0,0.00019286,2]
[367274994,1750726238136,-275.59981228,0.00019286,2]
[367274995,1750726238148,-460.0,0.00019286,2]
[367274996,1750726238157,-460.0,0.00019286,2]
[367274997,1750726238167,-2676.44,0.00019286,2]
[367274998,1750726238177,-460.0,0.00019286,2]
[367274999,1750726238187,-460.0,0.00019286,2]
[367275000,1750726238198,-460.0,0.00019286,2]
[367275001,1750726238208,-460.0,0.00019286,2]
[367275002,1750726238217,-460.0,0.00019286,2]
[367275003,1750726238231,-306.76929883,0.00019286,2]
[367275004,1750726238240,-1568.67,0.00019286,2]
[367275005,1750726238249,-460.0,0.00019286,2]
[367275006,1750726238258,-460.0,0.00019286,2]
[367275007,1750726238270,-2061.15,0.00019286,2]
[367275008,1750726238279,-460.0,0.00019286,2]
[367275009,1750726238290,-460.0,0.00019286,2]
[367275010,1750726238299,-460.0,0.00019286,2]
[367275011,1750726238309,-460.0,0.00019286,2]
[367275012,1750726238318,-3713.34,0.00019286,2]
[367275013,1750726238327,-460.0,0.00019286,2]
[367275014,1750726238336,-460.0,0.00019286,2]
[367275015,1750726238346,-460.0,0.00019286,2]
[367275016,1750726238355,-460.0,0.00019286,2]
[367275017,1750726238365,-477.08,0.00019286,2]
[367275018,1750726238375,-460.0,0.00019286,2]
[367275019,1750726238385,-460.0,0.00019286,2]
[367275020,1750726238394,-460.0,0.00019286,2]
[367275021,1750726238403,-1154.07,0.00019286,2]
[367275022,1750726238413,-460.0,0.00019286,2]
[367275023,1750726238423,-613.63,0.00019286,2]
[367275024,1750726238433,-460.0,0.00019286,2]
[367275025,1750726238443,-2122.3,0.00019286,2]
[367275026,1750726238452,-460.0,0.00019286,2]
[367275027,1750726238462,-1036.93,0.00019286,2]
[367275028,1750726238471,-460.0,0.00019286,2]
[367275029,1750726238480,-460.0,0.00019286,2]
[367275030,1750726238489,-664.47,0.00019286,2]
[367275031,1750726238498,-2820.01,0.00019286,2]
[367275032,1750726238508,-827.74,0.00019286,2]
[367275033,1750726238517,-474.04119752,0.00019286,2]
[367275034,1750726238526,-460.0,0.00019286,2]
[367275035,1750726238535,-571.98,0.00019286,2]
[367275036,1750726238544,-460.0,0.00019286,2]
[367275037,1750726238554,-460.0,0.00019286,2]
[367275038,1750726238563,-2277.68,0.00019286,2]
[367275039,1750726238572,-650.39488136,0.00019286,2]
[367275040,1750726238581,-568.82529495,0.00019286,2]
[367275041,1750726238590,-568.82529495,0.00019286,2]
[367275042,1750726238599,-568.82529495,0.00019286,2]
[367275043,1750726238608,-452.13918411,0.00019286,2]
[367275044,1750726238621,-116.68611084,0.00019286,2]
[367275045,1750726238629,-568.82529495,0.00019286,2]
[367275046,1750726238638,-568.82529495,0.00019286,2]
[367275047,1750726238647,-568.82529495,0.00019286,2]
[367275048,1750726238656,-568.82529495,0.00019286,2]
[367275049,1750726238665,-568.82529495,0.00019286,2]
[367275050,1750726238675,-568.82529495,0.00019286,2]
[367275051,1750726238684,-568.82529495,0.00019286,2]
[367275052,1750726238694,-568.82529495,0.00019286,2]
[367275053,1750726238703,-568.82529495,0.00019286,2]
[367275054,1750726238712,-568.82529495,0.00019286,2]
[367275055,1750726238721,-568.82529495,0.00019286,2]
[367275056,1750726238731,-568.82529495,0.00019286,2]
[367275057,1750726238740,-568.82529495,0.00019286,2]
[367275058,1750726238749,-568.82529495,0.00019286,2]
[367275059,1750726238759,-460.0,0.00019287,2]
[367275060,1750726238768,-460.0,0.00019287,2]